bitfinex/quotes_BTCUSD_20240717
["timestamp","ask_amount","ask_price","bid_price","bid_amount"]
[1721198782933,0.05000001,65779.0,65778.0,0.01595739]
[1721198783135,0.05000001,65779.0,65778.0,0.02372344]
[1721198783338,0.05000001,65779.0,65778.0,0.01872344]
[1721198783965,0.05000001,65779.0,65778.0,0.02372344]
[1721198784166,0.05000001,65779.0,65778.0,0.006924]
[1721198784389,0.20202401,65779.0,65778.0,0.006924]
[1721198786002,0.50607201,65779.0,65778.0,0.006924]
[1721198786201,1.25896801,65779.0,65778.0,0.006924]
[1721198786936,1.25896801,65779.0,65778.0,0.005924]
[1721198787149,1.25896801,65779.0,65778.0,0.000924]
[1721198787480,1.26296801,65779.0,65778.0,0.001924]
[1721198787884,1.26496801,65779.0,65778.0,0.001924]
[1721198789202,1.77339775,65779.0,65778.0,0.001924]
[1721198789419,1.77139775,65779.0,65778.0,0.001924]
[1721198789581,1.8396574,65779.0,65778.0,0.001924]
[1721198789787,1.94620092,65779.0,65778.0,0.002924]
[1721198790097,2.29083241,65779.0,65778.0,0.002924]
[1721198790930,2.25358256,65779.0,65778.0,0.001924]
[1721198791274,2.1325899,65779.0,65778.0,0.001924]
[1721198791649,2.1365899,65779.0,65778.0,0.002924]
[1721198793080,2.1365899,65779.0,65778.0,0.001924]
[1721198794320,2.1455899,65779.0,65778.0,0.001924]
[1721198795552,2.1455899,65779.0,65754.0,0.472]
[1721198795553,0.810397,65755.0,65754.0,0.472]
[1721198795770,0.506259,65752.0,65751.0,0.46304871]
[1721198795987,0.506259,65752.0,65747.0,0.0807]
[1721198795988,0.202093,65749.0,65747.0,0.0807]
[1721198796995,0.50628,65749.0,65747.0,0.1807]
[1721198797425,0.810467,65749.0,65744.0,0.0815]
[1721198797924,0.811467,65749.0,65748.0,0.012924]
[1721198798318,1.115654,65749.0,65748.0,0.012924]
[1721198798613,1.40723574,65749.0,65748.0,0.012924]
[1721198799091,1.45723574,65749.0,65748.0,0.012924]
[1721198799334,1.40723574,65749.0,65748.0,0.008924]
[1721198799545,1.40623574,65749.0,65748.0,0.000924]
[1721198799761,1.41123574,65749.0,65748.0,0.000924]
[1721198799983,1.71542274,65749.0,65748.0,0.000924]
[1721198800202,2.08267841,65749.0,65748.0,0.000924]
[1721198800457,2.11067841,65749.0,65748.0,0.001924]
[1721198800718,2.24318769,65749.0,65748.0,0.001924]
[1721198800932,2.28098885,65749.0,65748.0,0.001924]
[1721198801179,2.28912722,65749.0,65748.0,0.000924]
[1721198801386,2.27512722,65749.0,65748.0,0.000924]
[1721198801829,2.25805855,65749.0,65748.0,0.000924]
[1721198802061,2.17860974,65749.0,65748.0,0.000924]
[1721198802498,1.87442274,65749.0,65748.0,0.000924]
[1721198802715,1.88842274,65749.0,65748.0,0.000924]
[1721198803166,1.90242274,65749.0,65748.0,0.001924]
[1721198803636,2.05677231,65749.0,65748.0,0.001924]
[1721198804373,2.36095931,65749.0,65748.0,0.001924]
[1721198805538,2.39487648,65749.0,65748.0,0.001924]
[1721198806250,1.773177,65743.0,65742.0,0.0854]
[1721198806505,2.28465874,65743.0,65742.0,0.0854]
[1721198806723,2.32409927,65743.0,65742.0,0.0854]
[1721198807674,2.33809927,65743.0,65742.0,0.0854]
[1721198807870,2.35209927,65743.0,65742.0,0.0854]
[1721198808180,2.31265874,65743.0,65742.0,0.0854]
[1721198808675,2.31265874,65743.0,65742.0,0.0427]
[1721198812030,2.41265874,65743.0,65742.0,0.0427]
[1721198813455,2.05844474,65743.0,65742.0,0.0427]
[1721198815598,1.96784474,65743.0,65742.0,0.0427]
[1721198815803,1.95384474,65743.0,65742.0,0.0427]
[1721198816023,1.60293074,65743.0,65742.0,0.0427]
[1721198816238,1.61693074,65743.0,65742.0,0.0427]
[1721198816610,1.63093074,65743.0,65742.0,0.0427]
[1721198816813,1.60293074,65743.0,65742.0,0.0427]
[1721198817071,1.61693074,65743.0,65742.0,0.0427]
[1721198817286,1.61693074,65743.0,65742.0,0.1237]
[1721198817287,0.39848874,65743.0,65742.0,0.1237]
[1721198817475,0.230107,65743.0,65742.0,0.1852]
[1721198817646,0.216107,65743.0,65742.0,0.1852]
[1721198817996,0.064,65743.0,65742.0,0.1852]
[1721198818301,0.064,65743.0,65742.0,0.337309]
[1721198818517,0.064,65743.0,65742.0,0.1852]
[1721198818892,0.078,65743.0,65742.0,0.1852]
[1721198819034,0.064,65743.0,65742.0,0.1852]
[1721198819632,0.052,65743.0,65742.0,0.1852]
[1721198819844,0.05,65743.0,65742.0,0.1852]
[1721198819954,0.05,65743.0,65742.0,0.1862]
[1721198819955,0.052,65743.0,65742.0,0.1862]
[1721198820372,0.204107,65743.0,65742.0,0.1862]
[1721198821708,0.812535,65743.0,65742.0,0.1862]
[1721198821903,0.812535,65743.0,65742.0,0.0437]
[1721198823857,1.116749,65743.0,65742.0,0.0437]
[1721198824653,0.812535,65743.0,65742.0,0.0437]
[1721198824861,0.812535,65743.0,65742.0,0.06209]
[1721198825785,0.052,65743.0,65742.0,0.06209]
[1721198825983,0.052,65743.0,65742.0,0.20429]
[1721198827734,0.052,65743.0,65742.0,0.1859]
[1721198829855,0.204107,65743.0,65742.0,0.1859]
[1721198830059,0.204107,65743.0,65742.0,0.0437]
[1721198830060,1.34830553,65743.0,65742.0,0.0437]
[1721198830274,1.56810553,65743.0,65742.0,0.0437]
[1721198830911,2.065957,65743.0,65742.0,0.0437]
[1721198831111,2.24680305,65743.0,65742.0,0.0437]
[1721198831702,2.10316558,65743.0,65742.0,0.0437]
[1721198831900,2.10317011,65743.0,65742.0,0.0437]
[1721198832105,2.10117011,65743.0,65742.0,0.0427]
[1721198832319,2.08597158,65743.0,65742.0,0.0427]
[1721198832523,2.14397158,65743.0,65742.0,0.0427]
[1721198832738,2.29832115,65743.0,65742.0,0.0427]
[1721198832861,2.28732115,65743.0,65742.0,0.0427]
[1721198833062,2.30632115,65743.0,65742.0,0.0427]
[1721198833502,2.15197158,65743.0,65742.0,0.0427]
[1721198834863,2.117721,65743.0,65742.0,0.0427]
[1721198835095,2.02494044,65743.0,65742.0,0.0427]
[1721198835496,2.07494044,65743.0,65742.0,0.0427]
[1721198838143,2.04054621,65743.0,65742.0,0.0427]
[1721198838362,2.26351957,65743.0,65742.0,0.0427]
[1721198838575,2.23212231,65743.0,65742.0,0.0427]
[1721198838737,2.27751957,65743.0,65742.0,0.0427]
[1721198839141,2.3002182,65743.0,65742.0,0.0427]
[1721198839661,2.2842182,65743.0,65742.0,0.0427]
[1721198840159,2.07577274,65743.0,65742.0,0.04138736]
[1721198841171,2.18926589,65743.0,65742.0,0.04138736]
[1721198841370,2.28935077,65743.0,65742.0,0.04138736]
[1721198841546,2.28910992,65743.0,65742.0,0.04138736]
[1721198841756,2.17553189,65743.0,65742.0,0.04138736]
[1721198841960,2.28910989,65743.0,65742.0,0.04138736]
[1721198842161,2.17553189,65743.0,65742.0,0.04138736]
[1721198843144,2.63409546,65743.0,65742.0,0.04138736]
[1721198843345,0.873832,65726.0,65725.0,0.000924]
[1721198843569,1.28156141,65726.0,65725.0,0.000924]
[1721198843771,1.58585441,65726.0,65725.0,0.000924]
[1721198843984,1.63130467,65726.0,65725.0,0.000924]
[1721198844331,1.58585441,65726.0,65725.0,0.000924]
[1721198844545,1.52275441,65726.0,65725.0,0.000924]
[1721198844708,1.522712,65726.0,65725.0,0.000924]
[1721198845144,1.26940674,65726.0,65725.0,0.146424]
[1721198845344,1.27940674,65726.0,65725.0,0.146424]
[1721198845959,1.26940674,65726.0,65725.0,0.146424]
[1721198846160,1.27940674,65726.0,65725.0,0.146424]
[1721198846514,1.28640674,65726.0,65725.0,0.146424]
[1721198846716,1.28640674,65726.0,65725.0,0.000924]
[1721198846937,1.29340674,65726.0,65725.0,0.000924]
[1721198848987,1.51320674,65726.0,65725.0,0.000924]
[1721198849195,1.54628937,65726.0,65725.0,0.000924]
[1721198849957,1.51320674,65726.0,65725.0,0.000924]
[1721198850422,1.29340674,65726.0,65725.0,0.000924]
[1721198851678,1.29340674,65726.0,65725.0,0.078024]
[1721198853402,1.29340674,65726.0,65725.0,0.000924]
[1721198853623,1.57860674,65726.0,65725.0,0.000924]
[1721198853787,1.6114594,65726.0,65725.0,0.000924]
[1721198854284,1.6113523,65726.0,65725.0,0.000924]
[1721198856327,1.5459523,65726.0,65725.0,0.000924]
[1721198857155,1.3261523,65726.0,65725.0,0.077824]
[1721198857351,1.0218593,65726.0,65725.0,0.143524]
[1721198857557,1.02210992,65726.0,65725.0,0.143524]
[1721198857979,1.02210992,65726.0,65725.0,0.077824]
[1721198858830,1.32640292,65726.0,65725.0,0.000924]
[1721198860787,1.32615582,65726.0,65725.0,0.000924]
[1721198860986,1.32615582,65726.0,65725.0,0.141424]
[1721198861211,1.02186282,65726.0,65725.0,0.141424]
[1721198862069,0.10674908,65726.0,65725.0,0.141424]
[1721198862278,0.024,65726.0,65725.0,0.293573]
[1721198862608,0.024,65726.0,65725.0,0.60403284]
[1721198862819,0.024,65726.0,65725.0,0.29973484]
[1721198862996,0.014,65726.0,65725.0,0.29973484]
[1721198863614,0.05,65730.0,65727.0,0.0829]
[1721198863773,0.05,65730.0,65728.0,0.0829]
[1721198863941,0.05,65730.0,65728.0,0.08905393]
[1721198864397,0.05,65730.0,65729.0,0.1436]
[1721198864601,0.05,65731.0,65729.0,0.24641379]
[1721198864848,0.05,65732.0,65730.0,0.0798]
[1721198865196,0.05,65732.0,65731.0,0.00614602]
[1721198865635,0.05,65733.0,65731.0,0.00614602]
[1721198865836,0.05,65733.0,65732.0,0.1481]
[1721198866192,0.05,65733.0,65732.0,0.17627771]
[1721198867117,0.05,65733.0,65732.0,0.15424339]
[1721198867636,0.05,65733.0,65732.0,0.15524339]
[1721198868087,0.061,65733.0,65732.0,0.15524339]
[1721198868482,0.05,65733.0,65732.0,0.15524339]
[1721198868920,0.052,65733.0,65732.0,0.15524339]
[1721198870438,0.20413,65733.0,65732.0,0.15524339]
[1721198870833,0.20413,65733.0,65732.0,0.1491]
[1721198872863,0.20413,65733.0,65732.0,0.16401]
[1721198873576,0.002,65733.0,65732.0,0.16401]
[1721198873742,0.002,65733.0,65732.0,0.32228539]
[1721198873943,0.002,65733.0,65732.0,0.93081539]
[1721198874198,0.002,65733.0,65732.0,1.33508039]
[1721198874362,0.002,65733.0,65732.0,1.48946213]
[1721198874803,0.00277097,65747.0,65744.0,0.1434]
[1721198875011,0.00277097,65747.0,65745.0,0.152101]
[1721198875222,0.00084,65748.0,65747.0,0.446196]
[1721198875368,0.00084,65748.0,65747.0,0.598294]
[1721198875572,0.00084,65748.0,65747.0,0.294098]
[1721198875773,0.00084,65748.0,65747.0,0.598294]
[1721198875981,0.00084,65748.0,65747.0,0.90249]
[1721198877227,0.00184,65748.0,65747.0,0.90449]
[1721198877850,0.00184,65748.0,65747.0,0.90649]
[1721198878266,0.00184,65748.0,65747.0,0.90449]
[1721198878716,0.00284,65748.0,65747.0,0.146]
[1721198878915,0.05284,65748.0,65747.0,0.146]
[1721198879151,0.05284,65748.0,65747.0,0.1606]
[1721198879374,0.204935,65748.0,65747.0,0.004]
[1721198879589,0.509126,65748.0,65747.0,0.004]
[1721198880014,1.116508,65748.0,65747.0,0.002]
[1721198880225,1.182608,65748.0,65747.0,0.002]
[1721198880495,1.33798974,65748.0,65747.0,0.004]
[1721198880643,1.33798974,65748.0,65737.0,0.0768]
[1721198880644,0.05,65738.0,65737.0,0.0768]
[1721198881852,0.05,65738.0,65735.0,0.062]
[1721198881853,0.05,65742.0,65735.0,0.304249]
[1721198882066,0.05,65741.0,65736.0,0.1451]
[1721198882266,0.05,65740.0,65738.0,0.152118]
[1721198882690,0.05,65740.0,65736.0,0.297221]
[1721198882836,0.05,65737.0,65736.0,0.297221]
[1721198883465,0.05,65737.0,65736.0,0.30334274]
[1721198883899,0.001,65738.0,65737.0,0.152121]
[1721198884130,0.05,65740.0,65737.0,0.1582401]
[1721198884556,0.05,65738.0,65737.0,0.0061191]
[1721198886891,0.051,65738.0,65737.0,0.0101191]
[1721198888320,0.203119,65738.0,65737.0,0.0101191]
[1721198888525,0.507357,65738.0,65737.0,0.0101191]
[1721198888744,0.811595,65738.0,65737.0,0.004]
[1721198888956,0.871795,65738.0,65737.0,0.004]
[1721198889256,1.176033,65738.0,65737.0,0.004]
[1721198889649,0.871795,65738.0,65737.0,0.004]
[1721198889873,0.871795,65738.0,65737.0,0.002]
[1721198890048,0.20213,65733.0,65732.0,0.000924]
[1721198890427,0.506391,65733.0,65732.0,0.000924]
[1721198890894,0.506391,65733.0,65732.0,0.0156564]
[1721198891753,0.511391,65733.0,65732.0,0.0156564]
[1721198892460,0.15713,65733.0,65732.0,0.0156564]
[1721198892627,0.005,65733.0,65732.0,0.0156564]
[1721198892975,0.055,65733.0,65732.0,0.02178868]
[1721198893395,0.05,65733.0,65732.0,0.02178868]
[1721198893840,0.054,65733.0,65732.0,0.02378868]
[1721198894219,0.05,65733.0,65732.0,0.02378868]
[1721198894630,0.052,65733.0,65732.0,0.02378868]
[1721198895172,0.15213,65733.0,65732.0,0.02378868]
[1721198895373,0.456391,65733.0,65732.0,0.0176564]
[1721198895722,0.15213,65733.0,65732.0,0.0176564]
[1721198895928,0.456391,65733.0,65732.0,0.0176564]
[1721198896171,0.760652,65733.0,65732.0,0.0176564]
[1721198896568,0.760652,65733.0,65732.0,0.0156564]
[1721198896952,0.760652,65733.0,65732.0,0.0176564]
[1721198897720,0.762652,65733.0,65732.0,0.0176564]
[1721198898093,0.458391,65733.0,65732.0,0.0176564]
[1721198898596,0.458391,65733.0,65732.0,0.0156564]
[1721198898804,0.461391,65733.0,65732.0,0.0166564]
[1721198899856,0.463391,65733.0,65732.0,0.001924]
[1721198904140,0.007,65733.0,65732.0,0.001924]
[1721198904858,0.002,65733.0,65732.0,0.000924]
[1721198905287,0.003,65733.0,65732.0,0.299456]
[1721198905562,0.003,65733.0,65732.0,0.148324]
[1721198906134,0.525391,65733.0,65732.0,0.001924]
[1721198906333,0.459391,65733.0,65732.0,0.000924]
[1721198906577,0.457391,65733.0,65732.0,0.002924]
[1721198906779,0.457391,65733.0,65732.0,0.005924]
[1721198907198,1.065913,65733.0,65732.0,0.005924]
[1721198907425,1.065913,65733.0,65732.0,0.002924]
[1721198907597,1.068913,65733.0,65732.0,0.002924]
[1721198908324,1.065913,65733.0,65732.0,0.003924]
[1721198908519,1.18739509,65733.0,65732.0,0.003924]
[1721198908667,1.18639509,65733.0,65732.0,0.000924]
[1721198908863,1.19239509,65733.0,65732.0,0.000924]
[1721198909123,1.40927683,65733.0,65732.0,0.000924]
[1721198909701,1.39927683,65733.0,65732.0,0.000924]
[1721198910068,1.40827683,65733.0,65732.0,0.000924]
[1721198910264,1.62807683,65733.0,65732.0,0.000924]
[1721198910466,1.93233783,65733.0,65732.0,0.000924]
[1721198910687,1.97776798,65733.0,65732.0,0.000924]
[1721198910922,1.93233783,65733.0,65732.0,0.000924]
[1721198911135,1.93196571,65733.0,65732.0,0.000924]
[1721198911281,1.97738942,65733.0,65732.0,0.000924]
[1721198911487,1.45332842,65733.0,65732.0,0.000924]
[1721198911884,1.40790471,65733.0,65732.0,0.000924]
[1721198914322,1.41148084,65733.0,65732.0,0.000924]
[1721198914533,1.43528414,65733.0,65732.0,0.000924]
[1721198914738,1.48069515,65733.0,65732.0,0.000924]
[1721198915159,1.43528414,65733.0,65732.0,0.000924]
[1721198915393,1.41148084,65733.0,65732.0,0.000924]
[1721198915599,1.63128084,65733.0,65732.0,0.000924]
[1721198915814,1.65508419,65733.0,65732.0,0.000924]
[1721198916167,1.63128084,65733.0,65732.0,0.000924]
[1721198917205,1.70049593,65733.0,65732.0,0.000924]
[1721198917454,1.65558137,65733.0,65732.0,0.000924]
[1721198917944,1.95984237,65733.0,65732.0,0.000924]
[1721198919079,2.01891381,65733.0,65732.0,0.000924]
[1721198919193,2.02391381,65733.0,65732.0,0.000924]
[1721198919397,1.95584237,65733.0,65732.0,0.000924]
[1721198919718,2.03191381,65733.0,65732.0,0.000924]
[1721198920748,2.03159891,65733.0,65732.0,0.000924]
[1721198920952,1.92915982,65733.0,65732.0,0.000924]
[1721198921159,2.03148702,65733.0,65732.0,0.000924]
[1721198922131,2.03149901,65733.0,65732.0,0.000924]
[1721198922352,2.03149338,65733.0,65732.0,0.000924]
[1721198922598,2.01342973,65733.0,65732.0,0.000924]
[1721198922889,2.12687853,65733.0,65732.0,0.000924]
[1721198923315,2.12688315,65733.0,65732.0,0.000924]
[1721198923470,2.06588315,65733.0,65732.0,0.000924]
[1721198923679,1.96642973,65733.0,65732.0,0.000924]
[1721198923975,1.74673271,65733.0,65732.0,0.000924]
[1721198924157,2.02061384,65733.0,65732.0,0.000924]
[1721198924352,2.07060969,65733.0,65732.0,0.000924]
[1721198924552,1.96653271,65733.0,65732.0,0.000924]
[1721198925162,2.01653271,65733.0,65732.0,0.000924]
[1721198925763,2.13000181,65733.0,65732.0,0.000924]
[1721198925964,2.16971986,65733.0,65732.0,0.000924]
[1721198926175,2.18371986,65733.0,65732.0,0.000924]
[1721198926375,2.16171986,65733.0,65732.0,0.000924]
[1721198926638,2.07796941,65733.0,65732.0,0.000924]
[1721198926843,2.02253271,65733.0,65732.0,0.000924]
[1721198927140,1.97415982,65733.0,65732.0,0.000924]
[1721198927270,1.99404704,65733.0,65732.0,0.000924]
[1721198927483,2.09090173,65733.0,65732.0,0.000924]
[1721198928020,2.03604704,65733.0,65732.0,0.000924]
[1721198928264,2.10493504,65733.0,65732.0,0.000924]
[1721198928452,2.03604704,65733.0,65732.0,0.000924]
[1721198928660,2.10493664,65733.0,65732.0,0.000924]
[1721198929195,1.95804704,65733.0,65732.0,0.000924]
[1721198929823,1.95804704,65733.0,65724.0,0.083524]
[1721198929824,0.152149,65725.0,65724.0,0.065772]
[1721198930032,0.64471596,65725.0,65724.0,0.065772]
[1721198930238,1.21942474,65725.0,65724.0,0.065772]
[1721198930399,1.25312315,65725.0,65724.0,0.065772]
[1721198931064,0.79444341,65725.0,65724.0,0.0788292]
[1721198931236,0.50114541,65725.0,65724.0,0.0788292]
[1721198931614,0.80544341,65725.0,65724.0,0.0788292]
[1721198932305,0.80544341,65725.0,65724.0,0.065772]
[1721198932695,0.81944341,65725.0,65724.0,0.065772]
[1721198933459,0.81984961,65725.0,65724.0,0.065772]
[1721198936708,0.81948416,65725.0,65724.0,0.065772]
[1721198939703,0.785745,65725.0,65724.0,0.065772]
[1721198939987,0.8192615,65725.0,65724.0,0.065772]
[1721198940187,0.81914617,65725.0,65724.0,0.065772]
[1721198941225,0.785745,65725.0,65724.0,0.065772]
[1721198941405,0.84291181,65725.0,65724.0,0.065772]
[1721198942127,0.80955004,65725.0,65724.0,0.065772]
[1721198942390,0.84292579,65725.0,65724.0,0.065772]
[1721198942588,0.84292579,65725.0,65724.0,0.066696]
[1721198943634,0.84292579,65725.0,65724.0,0.000924]
[1721198943977,0.84292579,65725.0,65724.0,0.0157264]
[1721198945153,0.84292579,65725.0,65724.0,0.000924]
[1721198945574,0.8885868,65725.0,65724.0,0.000924]
[1721198945766,0.5842888,65725.0,65724.0,0.000924]
[1721198946163,0.8885868,65725.0,65724.0,0.000924]
[1721198947561,0.84312759,65725.0,65724.0,0.000924]
[1721198948407,0.80955004,65725.0,65724.0,0.000924]
[1721198948608,0.84452612,65725.0,65724.0,0.000924]
[1721198949616,0.91273099,65725.0,65724.0,0.000924]
[1721198950442,1.00083099,65725.0,65724.0,0.000924]
[1721198951386,0.93262612,65725.0,65724.0,0.000924]
[1721198951813,0.93246659,65725.0,65724.0,0.000924]
[1721198952386,1.02345147,65725.0,65724.0,0.000924]
[1721198953227,1.54843121,65725.0,65724.0,0.000924]
[1721198953428,1.45744633,65725.0,65724.0,0.000924]
[1721198953633,1.48216287,65725.0,65724.0,0.000924]
[1721198953809,1.48216066,65725.0,65724.0,0.000924]
[1721198954022,1.02348092,65725.0,65724.0,0.080324]
[1721198954187,1.02348092,65725.0,65724.0,0.000924]
[1721198954423,1.39114633,65725.0,65724.0,0.000924]
[1721198954800,1.35632978,65725.0,65724.0,0.000924]
[1721198954998,1.39118791,65725.0,65724.0,0.000924]
[1721198956023,0.93250817,65725.0,65724.0,0.000924]
[1721198956331,1.03228872,65725.0,65724.0,0.0152364]
[1721198957364,1.04628872,65725.0,65724.0,0.0152364]
[1721198957657,1.04628872,65725.0,65724.0,0.000924]
[1721198957830,1.06028872,65725.0,65724.0,0.000924]
[1721198958186,1.06018622,65725.0,65724.0,0.000924]
[1721198960510,0.94639197,65725.0,65724.0,0.000924]
[1721198961424,0.64238102,65725.0,65724.0,0.000924]
[1721198961812,0.94667902,65725.0,65724.0,0.000924]
[1721198962436,0.64238102,65725.0,65724.0,0.0152364]
[1721198962838,0.64238102,65725.0,65724.0,0.000924]
[1721198964070,1.09307902,65725.0,65724.0,0.000924]
[1721198964422,1.55175876,65725.0,65724.0,0.000924]
[1721198964551,1.51672978,65725.0,65724.0,0.000924]
[1721198964920,1.55183439,65725.0,65724.0,0.000924]
[1721198965407,1.62198236,65725.0,65724.0,0.000924]
[1721198967062,1.59398236,65725.0,65724.0,0.000924]
[1721198967510,1.48872978,65725.0,65724.0,0.000924]
[1721198967710,1.78202778,65725.0,65724.0,0.000924]
[1721198968016,1.81002778,65725.0,65724.0,0.000924]
[1721198968226,1.91505872,65725.0,65724.0,0.000924]
[1721198969312,1.90105872,65725.0,65724.0,0.000924]
[1721198969508,1.88705872,65725.0,65724.0,0.000924]
[1721198969691,1.91505872,65725.0,65724.0,0.000924]
[1721198969882,1.81002778,65725.0,65724.0,0.000924]
[1721198970081,1.78202778,65725.0,65724.0,0.000924]
[1721198970492,1.79602778,65725.0,65724.0,0.000924]
[1721198970940,1.81002778,65725.0,65724.0,0.000924]
[1721198975064,1.86002778,65725.0,65724.0,0.000924]
[1721198975296,1.86086778,65725.0,65724.0,0.000924]
[1721198976454,1.96663714,65725.0,65724.0,0.000924]
[1721198979050,1.91663714,65725.0,65724.0,0.000924]
[1721198982303,1.83493714,65725.0,65724.0,0.000924]
[1721198983255,1.83560132,65725.0,65724.0,0.000924]
[1721198984663,1.77090132,65725.0,65724.0,0.000924]
[1721198986649,1.70040388,65725.0,65724.0,0.000924]
[1721198987033,1.76040388,65725.0,65724.0,0.000924]
[1721198988399,1.83103867,65725.0,65724.0,0.000924]
[1721198988555,1.90843867,65725.0,65724.0,0.000924]
[1721198989735,1.80186778,65725.0,65724.0,0.000924]
[1721198989915,1.90825693,65725.0,65724.0,0.000924]
[1721198990676,1.95825693,65725.0,65724.0,0.000924]
[1721198990883,1.90825693,65725.0,65724.0,0.000924]
[1721198993898,1.95825693,65725.0,65724.0,0.000924]
[1721198994502,1.90825693,65725.0,65724.0,0.000924]
[1721198994703,1.95825693,65725.0,65724.0,0.000924]
[1721198995918,2.0626065,65725.0,65724.0,0.000924]
[1721198996116,1.482688,65713.0,65712.0,0.009196]
[1721198996322,1.73442698,65713.0,65712.0,0.009196]
[1721198996530,1.81432347,65713.0,65712.0,0.009196]
[1721198997528,1.82832347,65713.0,65712.0,0.009196]
[1721198997932,1.97522347,65713.0,65712.0,0.009196]
[1721198998146,2.37957647,65713.0,65712.0,0.009196]
[1721198998516,2.50188183,65713.0,65712.0,0.009196]
[1721198998715,2.51588183,65713.0,65712.0,0.009196]
[1721198999313,2.50180812,65713.0,65712.0,0.009196]
[1721198999833,2.67015769,65713.0,65712.0,0.009196]
[1721199000101,2.65615769,65713.0,65712.0,0.009196]
[1721199000306,2.50180812,65713.0,65712.0,0.009196]
[1721199000498,2.51580812,65713.0,65712.0,0.009196]
[1721199001470,2.37957647,65713.0,65712.0,0.009196]
[1721199001696,2.31023578,65713.0,65712.0,0.009196]
[1721199001996,2.39061294,65713.0,65712.0,0.009196]
[1721199002201,2.3906219,65713.0,65712.0,0.009196]
[1721199002361,2.52684047,65713.0,65712.0,0.009196]
[1721199002563,2.3906219,65713.0,65712.0,0.009196]
[1721199002767,2.3406219,65713.0,65712.0,0.009196]
[1721199003004,2.45258165,65713.0,65712.0,0.009196]
[1721199003363,2.45255228,65713.0,65712.0,0.009196]
[1721199004420,2.58878013,65713.0,65712.0,0.009196]
[1721199004585,2.39059253,65713.0,65712.0,0.009196]
[1721199008160,2.3893005,65713.0,65712.0,0.009196]
[1721199010108,2.3012005,65713.0,65712.0,0.009196]
[1721199010327,2.52547933,65713.0,65712.0,0.009196]
[1721199011464,2.39018626,65713.0,65712.0,0.009196]
[1721199012680,2.16918626,65713.0,65712.0,0.009196]
[1721199012811,2.19418626,65713.0,65712.0,0.009196]
[1721199013824,2.11401803,65713.0,65712.0,0.009196]
[1721199014428,1.72156503,65713.0,65712.0,0.009196]
[1721199014702,1.80964524,65713.0,65712.0,0.091896]
[1721199014828,0.304391,65705.0,65688.0,0.304466]
[1721199015034,0.304407,65702.0,65692.0,0.152224]
[1721199015235,0.152209,65700.0,65693.0,0.00992467]
[1721199015440,0.00277097,65699.0,65693.0,0.00992467]
[1721199016189,0.00277097,65699.0,65693.0,0.16214567]
[1721199016335,0.15497797,65700.0,65693.0,0.16214567]
[1721199016543,0.15497797,65700.0,65694.0,0.01912484]
[1721199016795,0.16297797,65700.0,65694.0,0.01912484]
[1721199017197,0.15497797,65700.0,65694.0,0.01912484]
[1721199017363,0.00277097,65698.0,65694.0,0.01912484]
[1721199017566,0.00277097,65698.0,65697.0,0.45664]
[1721199017813,0.00277097,65698.0,65697.0,0.93785127]
[1721199018018,0.014,65705.0,65697.0,0.93785127]
[1721199018019,0.008,65700.0,65699.0,0.1434]
[1721199018135,0.008,65700.0,65699.0,0.295609]
[1721199018805,0.018,65700.0,65699.0,0.30550975]
[1721199018997,0.018,65700.0,65699.0,0.93651452]
[1721199019224,0.04910975,65707.0,65706.0,0.456579]
[1721199019430,0.0453983,65723.0,65714.0,0.0407]
[1721199019634,0.152989,65725.0,65717.0,0.0407]
[1721199019862,0.00084,65725.0,65713.0,0.1178]
[1721199020071,0.00277097,65723.0,65718.0,0.269964]
[1721199020281,0.00084,65725.0,65715.0,0.304344]
[1721199020675,0.00084,65725.0,65716.0,0.1411]
[1721199021304,0.157992,65724.0,65717.0,0.152167]
[1721199021511,0.00277097,65723.0,65719.0,0.064]
[1721199021697,0.152992,65724.0,65721.0,0.064]
[1721199021836,0.152992,65724.0,65722.0,0.0771]
[1721199022241,0.152992,65724.0,65723.0,0.0098282]
[1721199023574,0.153992,65724.0,65723.0,0.0098282]
[1721199023769,0.152992,65724.0,65723.0,0.0098282]
[1721199024009,0.152992,65724.0,65723.0,0.0268335]
[1721199024214,0.153992,65724.0,65723.0,0.0268335]
[1721199025604,0.00184,65724.0,65723.0,0.0268335]
[1721199025761,0.00184,65724.0,65723.0,0.3151865]
[1721199025984,0.00184,65724.0,65723.0,0.6024882]
[1721199026286,0.00484,65724.0,65723.0,1.14927694]
[1721199026585,0.00084,65734.0,65733.0,0.456391]
[1721199026913,0.00084,65748.0,65745.0,0.141]
[1721199027872,0.241036,65748.0,65745.0,0.141]
[1721199028313,0.152936,65748.0,65745.0,0.141]
[1721199029673,0.457129,65748.0,65745.0,0.141]
[1721199029796,0.457129,65748.0,65746.0,0.0141]
[1721199030219,0.460129,65748.0,65746.0,0.0141]
[1721199030554,0.152098,65747.0,65746.0,0.0141]
[1721199030917,0.152098,65747.0,65746.0,0.02381912]
[1721199031747,0.153098,65747.0,65746.0,0.0141]
[1721199032358,0.153098,65747.0,65740.0,0.0826]
[1721199032359,0.001,65747.0,65740.0,0.0826]
[1721199032563,0.456336,65741.0,65740.0,0.0826]
[1721199032877,0.152112,65741.0,65740.0,0.0826]
[1721199033443,0.456336,65741.0,65740.0,0.0826]
[1721199033650,0.152112,65741.0,65740.0,0.0826]
[1721199033852,0.456336,65741.0,65740.0,0.0826]
[1721199034059,0.456336,65741.0,65734.0,0.04931935]
[1721199034060,0.152121,65737.0,65736.0,0.0776]
[1721199035214,0.151671,65737.0,65736.0,0.0776]
[1721199035602,0.152671,65737.0,65736.0,0.0856]
[1721199035827,0.523313,65737.0,65736.0,0.008]
[1721199036029,0.827555,65737.0,65736.0,0.008]
[1721199036219,1.131797,65737.0,65736.0,0.008]
[1721199036800,0.761155,65737.0,65736.0,0.008]
[1721199037006,0.152137,65730.0,65726.0,0.1383]
[1721199037388,0.152134,65732.0,65727.0,0.00733678]
[1721199038006,0.00277097,65731.0,65727.0,0.00733678]